fUSD/lending_fUSD_20251217
["ID","MTS","AMOUNT","RATE_DAILY","PERIOD"]
[398938788,1766009444348,-500.0,0.00015473,2]
[398938789,1766009444363,-500.0,0.00015473,2]
[398938790,1766009444372,-500.0,0.00015473,2]
[398938791,1766009444383,-500.0,0.00015473,2]
[398938792,1766009444395,-500.0,0.00015473,2]
[398938793,1766009444404,-500.0,0.00015473,2]
[398938794,1766009444415,-150.0,0.00015473,2]
[398938795,1766009444426,-341.9726378,0.00015477,2]
[398938796,1766009444436,-150.0,0.00015488,2]
[398938797,1766009444448,-150.0,0.00015489,2]
[398938798,1766009444458,-150.0,0.0001549,2]
[398938799,1766009444468,-150.0,0.00015496,2]
[398938800,1766009444477,-150.0,0.000155,2]
[398938801,1766009444488,-150.0,0.00015505,2]
[398938802,1766009444499,-150.0,0.00015507,2]
[398938803,1766009444508,-150.0,0.00015516,2]
[398938804,1766009444518,-150.0,0.00015521,2]
[398938805,1766009444527,-400.49,0.00015525,2]
[398938806,1766009444537,-150.0,0.00015525,2]
[398938807,1766009444549,-150.0,0.00015527,2]
[398938808,1766009444559,-150.0,0.0001553,2]
[398938809,1766009444568,-1833.57,0.00015532,2]
[398938810,1766009444578,-457.04108268,0.00015539,2]
[398938811,1766009444588,-150.0,0.00015541,2]
[398938812,1766009444598,-150.0,0.00015542,2]
[398938813,1766009444610,-150.0,0.00015543,2]
[398938814,1766009444621,-150.0,0.00015549,2]
[398938815,1766009444631,-150.0,0.00015549,2]
[398938816,1766009444641,-150.0,0.00015553,2]
[398938817,1766009444650,-150.0,0.00015554,2]
[398938818,1766009444660,-150.0,0.00015562,2]
[398938819,1766009444670,-150.0,0.00015565,2]
[398938820,1766009444681,-150.0,0.00015567,2]
[398938821,1766009444691,-150.0,0.00015571,2]
[398938822,1766009444701,-150.0,0.00015571,2]
[398938823,1766009444710,-150.0,0.0001558,2]
[398938824,1766009444720,-150.0,0.0001558,2]
[398938825,1766009444729,-150.0,0.00015587,2]
[398938826,1766009444739,-150.0,0.00015592,2]
[398938827,1766009444748,-150.0,0.00015593,2]
[398938828,1766009444757,-150.0,0.00015598,2]
[398938829,1766009444767,-150.0,0.000156,2]
[398938830,1766009444776,-150.0,0.00015606,2]
[398938831,1766009444785,-600.0,0.00015616,2]
[398938832,1766009444795,-150.0,0.00015616,2]
[398938833,1766009444804,-150.0,0.00015617,2]
[398938834,1766009444813,-150.0,0.00015621,2]
[398938835,1766009444823,-150.0,0.00015627,2]
[398938836,1766009444832,-150.0,0.00015633,2]
[398938837,1766009444842,-150.0,0.00015634,2]
[398938838,1766009444852,-150.0,0.00015635,2]
[398938839,1766009444862,-150.0,0.00015636,2]
[398938840,1766009444872,-150.0,0.00015643,2]
[398938841,1766009444882,-150.0,0.00015653,2]
[398938842,1766009444891,-150.0,0.00015654,2]
[398938843,1766009444901,-150.0,0.00015659,2]
[398938844,1766009444911,-150.0,0.00015668,2]
[398938845,1766009444921,-150.0,0.00015669,2]
[398938846,1766009444930,-150.0,0.00015671,2]
[398938847,1766009444939,-150.0,0.0001568,2]
[398938848,1766009444949,-150.0,0.0001568,2]
[398938849,1766009444959,-500.0,0.00015682,2]
[398938850,1766009444968,-500.0,0.00015682,2]
[398938851,1766009444978,-500.0,0.00015682,2]
[398938852,1766009444988,-500.0,0.00015682,2]
[398938853,1766009444998,-500.0,0.00015682,2]
[398938854,1766009445007,-150.0,0.00015682,2]
[398938855,1766009445017,-500.0,0.00015682,2]
[398938856,1766009445027,-150.0,0.00015682,2]
[398938857,1766009445036,-150.0,0.00015682,2]
[398938858,1766009445046,-150.0,0.00015682,2]
[398938859,1766009445056,-200.0,0.00015682,2]
[398938860,1766009445065,-500.0,0.00015682,2]
[398938861,1766009445076,-150.0,0.00015682,2]
[398938862,1766009445085,-500.0,0.00015682,2]
[398938863,1766009445095,-150.0,0.00015682,2]
[398938864,1766009445104,-547.0,0.00015682,2]
[398938865,1766009445114,-150.0,0.00015682,2]
[398938866,1766009445124,-150.0,0.00015682,2]
[398938867,1766009445133,-500.0,0.00015682,2]
[398938868,1766009445143,-150.0,0.00015682,2]
[398938869,1766009445153,-500.0,0.00015682,2]
[398938870,1766009445162,-500.0,0.00015682,2]
[398938871,1766009445172,-500.0,0.00015682,2]
[398938872,1766009445182,-451.0,0.00015682,2]
[398938873,1766009445192,-500.0,0.00015682,2]
[398938874,1766009445201,-500.0,0.00015682,2]
[398938875,1766009445211,-150.0,0.00015682,2]
[398938876,1766009445220,-150.0,0.00015686,2]
[398938877,1766009445230,-150.0,0.00015687,2]
[398938878,1766009445240,-150.0,0.00015689,2]
[398938879,1766009445249,-150.0,0.00015693,2]
[398938880,1766009445259,-150.0,0.00015704,2]
[398938881,1766009445268,-150.0,0.00015708,2]
[398938882,1766009445278,-150.0,0.00015712,2]
[398938883,1766009445288,-150.0,0.00015712,2]
[398938884,1766009445297,-150.0,0.00015712,2]
[398938885,1766009445307,-400.49,0.00015718,2]
[398938886,1766009445316,-150.0,0.00015719,2]
[398938887,1766009445326,-150.0,0.00015721,2]
[398938888,1766009445335,-150.0,0.00015723,2]
[398938889,1766009445345,-150.0,0.00015726,2]
[398938890,1766009445358,-150.0,0.00015738,2]
[398938891,1766009445368,-150.0,0.00015739,2]
[398938892,1766009445378,-150.0,0.00015744,2]
[398938893,1766009445387,-150.0,0.00015744,2]
[398938894,1766009445398,-150.0,0.00015754,2]
[398938895,1766009445407,-150.0,0.00015763,2]
[398938896,1766009445417,-150.0,0.00015765,2]
[398938897,1766009445429,-150.0,0.00015767,2]
[398938898,1766009445438,-150.0,0.00015769,2]
[398938899,1766009445449,-150.0,0.00015773,2]
[398938900,1766009445458,-150.0,0.00015781,2]
[398938901,1766009445468,-150.0,0.00015787,2]
[398938902,1766009445477,-17793.84744638,0.00015791,2]
[398938903,1766009445487,-150.0,0.00015792,2]
[398938904,1766009445497,-150.0,0.00015795,2]
[398938905,1766009445507,-7014.25176104,0.00015797,2]
[398938906,1766009445517,-150.0,0.00015797,2]
[398938907,1766009445528,-150.0,0.00015799,2]
[398938908,1766009445538,-1833.57,0.00015806,2]
[398938909,1766009445548,-500.0,0.00015807,2]
[398938910,1766009445557,-200.0,0.00015807,2]
[398938911,1766009445567,-150.0,0.00015808,2]
[398938912,1766009445576,-150.0,0.0001581,2]
[398938913,1766009445585,-150.0,0.0001581,2]
[398938914,1766009445595,-150.0,0.00015817,2]
[398938915,1766009445604,-150.0,0.00015818,2]
[398938916,1766009445614,-500.0,0.00015819,2]
[398938917,1766009445623,-500.0,0.00015819,2]
[398938918,1766009445633,-500.0,0.00015819,2]
[398938919,1766009445643,-500.0,0.00015819,2]
[398938920,1766009445653,-500.0,0.00015819,2]
[398938921,1766009445662,-150.0,0.00015819,2]
[398938922,1766009445671,-500.0,0.00015819,2]
[398938923,1766009445680,-200.0,0.00015819,2]
[398938924,1766009445690,-150.0,0.00015819,2]
[398938925,1766009445699,-500.0,0.00015819,2]
[398938926,1766009445709,-500.0,0.00015819,2]
[398938927,1766009445718,-150.0,0.00015819,2]
[398938928,1766009445728,-547.0,0.00015819,2]
[398938929,1766009445738,-150.0,0.00015819,2]
[398938930,1766009445748,-500.0,0.00015819,2]
[398938931,1766009445757,-150.0,0.00015819,2]
[398938932,1766009445767,-500.0,0.00015819,2]
[398938933,1766009445776,-500.0,0.00015819,2]
[398938934,1766009445786,-451.0,0.00015819,2]
[398938935,1766009445795,-500.0,0.00015819,2]
[398938936,1766009445804,-519.30716312,0.00015819,2]
[398938937,1766009445814,-500.0,0.00015819,2]
[398938939,1766009445823,-150.0,0.00015819,2]
[398938940,1766009445833,-150.0,0.0001582,2]
[398938941,1766009445843,-150.0,0.00015821,2]
[398938942,1766009445852,-150.0,0.00015836,2]
[398938943,1766009445862,-150.0,0.00015842,2]
[398938944,1766009445871,-150.0,0.00015845,2]
[398938945,1766009445881,-150.0,0.00015845,2]
[398938946,1766009445891,-150.0,0.00015854,2]
[398938947,1766009445902,-150.0,0.00015854,2]
[398938948,1766009445911,-150.0,0.00015854,2]
[398938949,1766009445921,-150.0,0.00015854,2]
[398938950,1766009445931,-150.0,0.00015854,2]
[398938951,1766009445940,-150.0,0.00015854,2]
[398938952,1766009445950,-150.0,0.00015871,2]
[398938953,1766009445959,-150.0,0.00015872,2]
[398938954,1766009445968,-150.0,0.00015872,2]
[398938955,1766009445978,-150.0,0.00015877,2]
[398938956,1766009445987,-150.0,0.00015882,2]
[398938957,1766009445996,-150.0,0.00015887,2]
[398938958,1766009446006,-600.0,0.0001589,2]
[398938959,1766009446015,-721.0,0.0001589,2]
[398938960,1766009446147,-721.0,0.0001589,2]
[398938961,1766009446158,-721.0,0.0001589,2]
[398938962,1766009446168,-150.0,0.0001589,2]
[398938963,1766009446178,-150.0,0.00015896,2]
[398938964,1766009446187,-150.0,0.00015897,2]
[398938965,1766009446197,-150.0,0.00015898,2]
[398938966,1766009446206,-668.83367395,0.000159,2]
[398938967,1766009446217,-668.83367394,0.000159,2]
[398938968,1766009446226,-668.83367394,0.000159,2]
[398938969,1766009446235,-668.83367394,0.000159,2]
[398938970,1766009446244,-668.83367394,0.000159,2]
[398938971,1766009446254,-668.83367394,0.000159,2]
[398938972,1766009446263,-23431.55261469,0.00015905,2]
[398938973,1766009446272,-150.0,0.00015909,2]
[398938974,1766009446281,-150.0,0.00015912,2]
[398938975,1766009446291,-150.0,0.0001592,2]
[398938976,1766009446300,-150.0,0.00015921,2]
[398938977,1766009446309,-150.0,0.00015925,2]
[398938978,1766009446318,-150.0,0.00015927,2]
[398938979,1766009446327,-213.6,0.00015938,2]
[398938980,1766009446336,-150.0,0.00015941,2]
[398938981,1766009446345,-150.0,0.00015941,2]
[398938982,1766009446360,-150.0,0.00015945,2]
[398938983,1766009446370,-150.0,0.00015946,2]
[398938984,1766009446379,-150.0,0.00015947,2]
[398938985,1766009446389,-150.0,0.00015951,2]
[398938986,1766009446401,-150.0,0.00015954,2]
[398938987,1766009446410,-500.0,0.00015956,2]
[398938988,1766009446419,-500.0,0.00015956,2]
[398938989,1766009446428,-500.0,0.00015956,2]
[398938990,1766009446440,-500.0,0.00015956,2]
[398938991,1766009446450,-500.0,0.00015956,2]
[398938992,1766009446459,-150.0,0.00015956,2]
[398938993,1766009446468,-500.0,0.00015956,2]
[398938994,1766009446477,-150.0,0.00015956,2]
[398938995,1766009446486,-500.0,0.00015956,2]
[398938996,1766009446495,-500.0,0.00015956,2]
[398938997,1766009446504,-215.99937066,0.00015956,2]
[398938998,1766009446514,-547.0,0.00015956,2]
[398938999,1766009446523,-150.0,0.00015956,2]
[398939000,1766009446533,-500.0,0.00015956,2]
[398939001,1766009446542,-150.0,0.00015956,2]
[398939002,1766009446551,-500.0,0.00015956,2]
[398939004,1766009446560,-451.0,0.00015956,2]
[398939005,1766009446569,-179.82138207,0.00015956,2]
[398939006,1766009446578,-500.0,0.00015956,2]
[398939007,1766009446587,-500.0,0.00015956,2]
[398939008,1766009446596,-150.0,0.00015956,2]
[398939009,1766009446605,-150.0,0.00015963,2]
[398939010,1766009446615,-213.6,0.00015964,2]
[398939011,1766009446624,-150.0,0.00015967,2]
[398939012,1766009446633,-150.0,0.00015972,2]
[398939013,1766009446642,-150.0,0.00015978,2]
[398939014,1766009446651,-150.0,0.00015981,2]
[398939015,1766009446660,-150.0,0.00015982,2]
[398939016,1766009446668,-150.0,0.00015985,2]
[398939017,1766009446677,-150.0,0.00015987,2]
[398939018,1766009446686,-213.59496346,0.0001599,2]
[398939019,1766009446695,-150.0,0.00015995,2]
[398939020,1766009446704,-150.0,0.00015998,2]
[398939021,1766009446714,-150.0,0.00016,2]
[398939022,1766009446723,-150.0,0.00016004,2]
[398939023,1766009446732,-151.0,0.00016015,2]
[398939024,1766009446741,-150.0,0.00016016,2]
[398939025,1766009446751,-150.0,0.00016018,2]
[398939026,1766009446760,-150.0,0.0001602,2]
[398939027,1766009446769,-1000.0,0.00016021,2]
[398939028,1766009446778,-1000.0,0.00016021,2]
[398939029,1766009446787,-669.93256308,0.00016021,2]
[398939030,1766009446796,-1000.0,0.00016021,2]
[398939031,1766009446804,-1000.0,0.00016021,2]
[398939032,1766009446813,-1000.0,0.00016021,2]
[398939033,1766009446823,-1000.0,0.00016021,2]
[398939034,1766009446832,-1000.0,0.00016021,2]
[398939035,1766009446840,-1000.0,0.00016021,2]
[398939036,1766009446850,-1000.0,0.00016021,2]
[398939037,1766009446859,-1000.0,0.00016021,2]
[398939038,1766009446868,-1000.0,0.00016021,2]
[398939039,1766009446878,-1000.0,0.00016021,2]
[398939040,1766009446887,-1000.0,0.00016021,2]
[398939041,1766009446896,-1000.0,0.00016021,2]
[398939042,1766009446905,-150.0,0.00016023,2]
[398939043,1766009446915,-150.0,0.00016028,2]
[398939044,1766009446924,-302.01604806,0.00016029,2]
[398939045,1766009446933,-150.0,0.00016031,2]
[398939046,1766009446942,-150.0,0.00016037,2]
[398939047,1766009446951,-346.64,0.00016037,2]
[398939048,1766009446961,-150.0,0.00016048,2]
[398939049,1766009446970,-150.0,0.0001605,2]
[398939050,1766009446980,-150.0,0.00016052,2]
[398939051,1766009446988,-150.0,0.00016054,2]
[398939052,1766009446998,-150.0,0.00016055,2]
[398939053,1766009447007,-150.0,0.00016057,2]
[398939054,1766009447016,-150.0,0.00016072,2]
[398939055,1766009447025,-150.0,0.00016072,2]
[398939056,1766009447036,-736.0,0.00016072,2]
[398939057,1766009447045,-150.0,0.00016073,2]
[398939058,1766009447055,-150.0,0.00016074,2]
[398939059,1766009447064,-1833.57,0.0001608,2]
[398939060,1766009447073,-150.0,0.00016084,2]
[398939061,1766009447083,-150.0,0.00016085,2]
[398939062,1766009447092,-150.0,0.00016087,2]
[398939063,1766009447101,-250.0,0.00016088,2]
[398939064,1766009447110,-150.0,0.00016091,2]
[398939065,1766009447119,-327.88478406,0.00016093,2]
[398939066,1766009447128,-500.0,0.00016093,2]
[398939067,1766009447137,-500.0,0.00016093,2]
[398939068,1766009447147,-500.0,0.00016093,2]
[398939069,1766009447156,-500.0,0.00016093,2]
[398939070,1766009447166,-150.0,0.00016093,2]
[398939071,1766009447175,-500.0,0.00016093,2]
[398939072,1766009447185,-150.0,0.00016093,2]
[398939073,1766009447194,-500.0,0.00016093,2]
[398939074,1766009447203,-500.0,0.00016093,2]
[398939075,1766009447212,-547.0,0.00016093,2]
[398939076,1766009447222,-150.0,0.00016093,2]
[398939077,1766009447231,-500.0,0.00016093,2]
[398939078,1766009447241,-150.0,0.00016093,2]
[398939079,1766009447250,-500.0,0.00016093,2]
[398939080,1766009447259,-451.0,0.00016093,2]
[398939081,1766009447268,-500.0,0.00016093,2]
[398939082,1766009447277,-500.0,0.00016093,2]
[398939083,1766009447286,-181.83250831,0.00016093,2]
[398939084,1766009447296,-150.0,0.00016099,2]
[398939085,1766009447305,-500.0,0.00016108,2]
[398939086,1766009447314,-500.0,0.00016108,2]
[398939087,1766009447323,-8878.42644205,0.00016108,2]
[398939088,1766009447332,-150.0,0.0001611,2]
[398939089,1766009447342,-2198.0,0.0001611,2]
[398939090,1766009447351,-150.0,0.0001611,2]
[398939091,1766009447363,-500.0,0.00016115,2]
[398939092,1766009447372,-500.0,0.00016115,2]
[398939093,1766009447381,-500.0,0.00016115,2]
[398939094,1766009447391,-500.0,0.00016115,2]
[398939095,1766009447401,-500.0,0.00016115,2]
[398939096,1766009447410,-500.0,0.00016115,2]
[398939097,1766009447419,-500.0,0.00016115,2]
[398939098,1766009447429,-645.50218631,0.00016115,2]
[398939099,1766009447438,-236.05898136,0.00016115,2]
[398939100,1766009447447,-500.0,0.00016115,2]
[398939101,1766009447457,-500.0,0.00016115,2]
[398939102,1766009447467,-500.0,0.00016115,2]
[398939103,1766009447476,-150.0,0.00016115,2]
[398939104,1766009447485,-9999.99,0.00016116,2]
[398939105,1766009447493,-150.0,0.0001612,2]
[398939106,1766009447504,-150.0,0.0001612,2]
[398939107,1766009447513,-150.0,0.00016124,2]
[398939108,1766009447522,-150.0,0.00016128,2]
[398939109,1766009447531,-150.0,0.00016137,2]
[398939110,1766009447541,-150.0,0.00016137,2]
[398939111,1766009447550,-150.0,0.00016137,2]
[398939112,1766009447559,-150.0,0.00016137,2]
[398939113,1766009447568,-150.0,0.00016137,2]
[398939114,1766009447576,-150.0,0.00016146,2]
[398939115,1766009447585,-200.0,0.00016149,2]
[398939116,1766009447595,-207.4,0.00016149,2]
[398939117,1766009447604,-215.0738,0.00016149,2]
[398939118,1766009447613,-153.01637236,0.00016149,2]
[398939119,1766009447622,-223.0315306,0.00016149,2]
[398939120,1766009447631,-231.28369723,0.00016149,2]
[398939121,1766009447640,-239.84119403,0.00016149,2]
[398939122,1766009447649,-248.71531821,0.00016149,2]
[398939123,1766009447658,-2000.0,0.00016149,2]
[398939124,1766009447667,-257.91778498,0.00016149,2]
[398939125,1766009447676,-533.88981491,0.00016149,2]
[398939126,1766009447685,-9000.0,0.00016149,2]
[398939127,1766009447693,-2000.0,0.00016149,2]
[398939128,1766009447703,-1000.0,0.00016149,2]
[398939129,1766009447713,-2000.0,0.00016149,2]
[398939130,1766009447723,-1000.0,0.00016149,2]
[398939131,1766009447732,-2000.0,0.00016149,2]
[398939132,1766009447741,-1000.0,0.00016149,2]
[398939133,1766009447750,-1000.0,0.00016149,2]
[398939134,1766009447759,-2000.0,0.00016149,2]
[398939135,1766009447769,-620.0,0.00016149,2]
[398939136,1766009447778,-1000.0,0.00016149,2]
[398939137,1766009447787,-2000.0,0.00016149,2]
[398939138,1766009447795,-1000.0,0.00016149,2]
[398939139,1766009447804,-2000.0,0.00016149,2]
[398939140,1766009447813,-2000.0,0.00016149,2]
[398939141,1766009447823,-1000.0,0.00016149,2]
[398939142,1766009447831,-1000.0,0.00016149,2]
[398939143,1766009447841,-2000.0,0.00016149,2]
[398939144,1766009447850,-1000.0,0.00016149,2]
[398939145,1766009447859,-1000.0,0.00016149,2]
[398939146,1766009447868,-2000.0,0.00016149,2]
[398939147,1766009447877,-1000.0,0.00016149,2]
[398939148,1766009447886,-1000.0,0.00016149,2]
[398939149,1766009447895,-2000.0,0.00016149,2]
[398939150,1766009447904,-1000.0,0.00016149,2]
[398939151,1766009447913,-1000.0,0.00016149,2]
[398939152,1766009447923,-2000.0,0.00016149,2]
[398939153,1766009447931,-1000.0,0.00016149,2]
[398939154,1766009447941,-1065.72949719,0.00016149,2]
[398939155,1766009447950,-603.98998006,0.00016149,2]
[398939156,1766009447959,-1000.0,0.00016149,2]
[398939157,1766009447968,-1000.0,0.00016149,2]
[398939158,1766009447977,-1000.0,0.00016149,2]
[398939159,1766009447987,-1000.0,0.00016149,2]
[398939160,1766009447996,-1000.0,0.00016149,2]
[398939161,1766009448005,-1000.0,0.00016149,2]
[398939162,1766009448014,-1000.0,0.00016149,2]
[398939163,1766009448024,-151.0,0.00016149,2]
[398939164,1766009448033,-1000.0,0.00016149,2]
[398939165,1766009448043,-250.0,0.00016149,2]
[398939166,1766009448052,-250.0,0.00016149,2]
[398939167,1766009448062,-250.0,0.00016149,2]
[398939168,1766009448071,-300.0,0.00016149,2]
[398939169,1766009448081,-250.0,0.00016149,2]
[398939170,1766009448091,-250.0,0.00016149,2]
[398939171,1766009448100,-151.0,0.00016149,2]
[398939172,1766009448110,-250.0,0.00016149,2]
[398939173,1766009448119,-250.0,0.00016149,2]
[398939174,1766009448128,-500.0,0.00016149,2]
[398939175,1766009448138,-250.0,0.00016149,2]
[398939176,1766009448147,-500.0,0.00016149,2]
[398939177,1766009448156,-500.0,0.00016149,2]
[398939178,1766009448166,-263.31566499,0.00016149,2]
[398939179,1766009448175,-1000.0,0.00016149,2]
[398939180,1766009448185,-151.0,0.00016149,2]
[398939181,1766009448194,-251.74379345,0.00016149,2]
[398939182,1766009448204,-578.20924308,0.00016149,2]
[398939183,1766009448213,-2345.0,0.00016149,2]
[398939184,1766009448223,-572.69602044,0.00016149,2]
[398939185,1766009448233,-150.0,0.0001615,2]
[398939186,1766009448243,-150.0,0.00016154,2]
[398939187,1766009448252,-1863.87983717,0.00016154,2]
[398939188,1766009448262,-150.0,0.00016154,2]
[398939189,1766009448271,-150.0,0.00016159,2]
[398939190,1766009448281,-17793.84744638,0.00016161,2]
[398939191,1766009448290,-193.52,0.00016163,2]
[398939192,1766009448300,-150.0,0.00016164,2]
[398939193,1766009448310,-500.0,0.00016164,2]
[398939194,1766009448320,-150.0,0.00016164,2]
[398939195,1766009448329,-500.0,0.00016164,2]
[398939196,1766009448339,-500.0,0.00016164,2]
[398939197,1766009448349,-150.0,0.00016164,2]
[398939198,1766009448362,-228.81809239,0.00016164,2]
[398939199,1766009448371,-500.0,0.00016164,2]
[398939200,1766009448381,-150.0,0.00016164,2]
[398939201,1766009448391,-150.82561092,0.00016164,2]
[398939202,1766009448401,-500.0,0.00016164,2]
[398939203,1766009448411,-150.0,0.00016164,2]
[398939204,1766009448420,-150.0,0.00016164,2]
[398939205,1766009448432,-150.0,0.00016164,2]
[398939206,1766009448442,-297.13717614,0.00016164,2]
[398939207,1766009448451,-150.0,0.00016164,2]
[398939208,1766009448461,-170.21872884,0.00016164,2]
[398939209,1766009448471,-600.0,0.00016164,2]
[398939210,1766009448480,-150.0,0.00016164,2]
[398939211,1766009448490,-150.0,0.00016175,2]
[398939212,1766009448500,-150.0,0.00016183,2]
[398939213,1766009448509,-150.0,0.00016187,2]
[398939214,1766009448519,-341.9726378,0.00016189,2]
[398939215,1766009448528,-150.0,0.00016189,2]
[398939216,1766009448538,-150.0,0.0001619,2]
[398939217,1766009448548,-150.0,0.000162,2]
[398939218,1766009448557,-150.0,0.00016201,2]
[398939219,1766009448567,-150.0,0.00016202,2]
[398939220,1766009448576,-150.0,0.00016202,2]
[398939221,1766009448587,-150.0,0.00016217,2]
[398939222,1766009448596,-150.0,0.00016219,2]
[398939223,1766009448606,-200.0,0.0001622,2]
[398939224,1766009448616,-150.0,0.0001622,2]
[398939225,1766009448625,-150.0,0.00016222,2]
[398939226,1766009448635,-150.0,0.00016224,2]
[398939227,1766009448644,-150.0,0.00016226,2]
[398939228,1766009448654,-500.0,0.0001623,2]
[398939229,1766009448664,-500.0,0.0001623,2]
[398939230,1766009448673,-500.0,0.0001623,2]
[398939231,1766009448683,-613.63401332,0.0001623,2]
[398939232,1766009448692,-150.0,0.0001623,2]
[398939233,1766009448702,-500.0,0.0001623,2]
[398939234,1766009448712,-150.0,0.0001623,2]
[398939235,1766009448722,-500.0,0.0001623,2]
[398939236,1766009448731,-500.0,0.0001623,2]
[398939237,1766009448741,-547.0,0.0001623,2]
[398939238,1766009448751,-259.35354361,0.0001623,2]
[398939239,1766009448761,-464.38738988,0.0001623,2]
[398939240,1766009448770,-200.0,0.0001623,2]
[398939241,1766009448780,-500.0,0.0001623,2]
[398939242,1766009448789,-451.0,0.0001623,2]
[398939243,1766009448799,-500.0,0.0001623,2]
[398939244,1766009448808,-500.0,0.0001623,2]
[398939245,1766009448818,-150.0,0.00016237,2]
[398939246,1766009448828,-150.0,0.00016243,2]
[398939247,1766009448837,-150.0,0.00016246,2]
[398939248,1766009448847,-150.0,0.00016251,2]
[398939249,1766009448857,-150.0,0.00016254,2]
[398939250,1766009448867,-150.0,0.00016256,2]
[398939251,1766009448876,-150.0,0.00016258,2]
[398939252,1766009448886,-150.0,0.0001627,2]
[398939253,1766009448895,-150.0,0.00016274,2]
[398939254,1766009448905,-150.0,0.00016276,2]
[398939255,1766009448914,-150.0,0.00016279,2]
[398939256,1766009448924,-150.0,0.00016287,2]
[398939257,1766009448933,-150.0,0.00016289,2]
[398939258,1766009448943,-150.0,0.00016292,2]
[398939259,1766009448952,-150.0,0.00016293,2]
[398939260,1766009448962,-150.0,0.00016296,2]
[398939261,1766009448971,-500.0,0.00016301,2]
[398939262,1766009448981,-500.0,0.00016301,2]
[398939263,1766009448991,-500.0,0.00016301,2]
[398939264,1766009449000,-150.0,0.00016301,2]
[398939265,1766009449010,-500.0,0.00016301,2]
[398939266,1766009449019,-150.0,0.00016301,2]
[398939267,1766009449029,-500.0,0.00016301,2]
[398939268,1766009449039,-150.0,0.00016301,2]
[398939269,1766009449048,-150.0,0.00016301,2]
[398939270,1766009449057,-161.99230191,0.00016301,2]
[398939271,1766009449067,-150.0,0.00016301,2]
[398939272,1766009449076,-150.0,0.00016302,2]
[398939273,1766009449087,-150.0,0.00016307,2]
[398939274,1766009449096,-150.0,0.00016311,2]
[398939275,1766009449106,-150.0,0.0001632,2]
[398939276,1766009449116,-150.0,0.00016323,2]
[398939277,1766009449126,-150.0,0.00016327,2]
[398939278,1766009449135,-150.0,0.00016328,2]
[398939279,1766009449144,-150.0,0.00016329,2]
[398939280,1766009449154,-150.0,0.00016333,2]
[398939281,1766009449164,-150.0,0.00016333,2]
[398939282,1766009449174,-10000.0,0.00016338,2]
[398939283,1766009449184,-45999.8287678,0.00016339,2]
[398939284,1766009449194,-258.0068092,0.00016347,2]
[398939285,1766009449203,-150.0,0.00016347,2]
[398939286,1766009449213,-150.0,0.00016349,2]
[398939287,1766009449223,-150.0,0.00016352,2]
[398939288,1766009449232,-150.0,0.00016353,2]
[398939289,1766009449242,-1833.57,0.00016354,2]